bitfinex/quotes_SOLUSD_20251006
["timestamp","ask_amount","ask_price","bid_price","bid_amount"]
[1759715472949,31.1,231.11,231.08,7.13303568]
[1759715473145,31.1,231.11,231.09,0.68]
[1759715473374,31.1,231.11,231.08,2.12554647]
[1759715473561,31.1,231.11,231.08,2.80554647]
[1759715473978,31.1,231.11,231.08,7.13301285]
[1759715474171,31.1,231.13,231.09,2.80554647]
[1759715474467,31.1,231.13,231.08,2.12554647]
[1759715474673,31.81,231.13,231.07,2.80554647]
[1759715474975,33.93554647,231.13,231.07,2.12554647]
[1759715475274,2.12554647,231.11,231.04,2.80554647]
[1759715475470,0.71,231.1,231.04,2.80554647]
[1759715475978,0.71,231.1,231.04,7.13375508]
[1759715476275,2.12554647,231.11,231.05,2.80554647]
[1759715476465,31.1,231.12,231.08,2.12554647]
[1759715476774,31.81,231.12,231.06,0.68]
[1759715476955,33.93554647,231.12,231.05,2.12554647]
[1759715477954,2.84554647,231.11,231.04,2.80554647]
[1759715478271,2.12554647,231.1,231.04,0.68]
[1759715478483,2.12554647,231.1,231.04,2.80554647]
[1759715478972,2.84554647,231.11,231.04,2.80554647]
[1759715479275,5.04698758,231.11,231.06,2.12554647]
[1759715479451,2.12554647,231.07,231.01,2.12554647]
[1759715479651,2.12554647,231.07,231.03,2.12554647]
[1759715479652,31.1,231.07,231.03,2.12554647]
[1759715479958,31.1,231.07,231.04,2.12554647]
[1759715480861,31.1,231.07,231.06,2.12554647]
[1759715482880,31.1,231.07,231.05,2.82554647]
[1759715483372,0.72,231.13,231.06,2.82554647]
[1759715483576,5.04660507,231.13,231.08,2.12554647]
[1759715483772,31.8,231.12,231.07,2.12554647]
[1759715483963,0.72,231.11,231.07,2.12554647]
[1759715484571,0.72,231.1,231.07,2.12554647]
[1759715485161,0.72,231.1,231.04,0.7]
[1759715485379,0.72,231.1,230.99,34.58073965]
[1759715485380,0.72,231.09,231.02,0.7]
[1759715485579,2.12554647,231.06,231.0,2.12554647]
[1759715485793,2.12554647,231.06,230.99,0.7]
[1759715485794,0.72,231.06,231.01,2.12554647]
[1759715486286,31.08,231.07,231.03,2.12554647]
[1759715486497,31.08,231.07,231.02,2.82554647]
[1759715486694,0.72,231.13,231.06,2.12554647]
[1759715486998,22.34,231.12,231.09,2.12554647]
[1759715487204,22.34,231.11,231.09,2.12554647]
[1759715487406,22.34,231.11,231.08,2.12554647]
[1759715487610,31.08,231.12,231.09,2.12554647]
[1759715487776,31.08,231.12,231.1,2.12554647]
[1759715487977,31.08,231.12,231.1,2.82554647]
[1759715488382,4.32488539,231.22,231.11,2.82554647]
[1759715488586,4.32488539,231.22,231.07,15.14692516]
[1759715488587,31.08,231.21,231.18,2.12554647]
[1759715488782,0.72,231.2,231.14,2.12554647]
[1759715488986,0.72,231.19,231.14,2.12554647]
[1759715489505,0.72,231.19,231.15,2.12554647]
[1759715490508,0.72,231.18,231.1,25.82712359]
[1759715490712,0.72,231.18,231.12,2.12554647]
[1759715491089,0.72,231.18,231.13,2.12554647]
[1759715491702,31.08,231.21,231.15,2.12554647]
[1759715492010,31.08,231.2,231.16,2.12554647]
[1759715492889,31.8,231.2,231.16,2.12554647]
[1759715493091,31.8,231.2,231.16,1.35889982]
[1759715493299,31.08,231.2,231.16,2.04889982]
[1759715493490,31.08,231.2,231.16,1.35889982]
[1759715493795,31.75,231.2,231.15,1.35889982]
[1759715493998,31.75,231.2,231.15,2.04889982]
[1759715494401,31.75,231.2,231.16,1.35889982]
[1759715495127,1.35889982,231.17,231.11,1.35889982]
[1759715495290,2.02889982,231.17,231.11,1.35889982]
[1759715495490,0.67,231.17,231.12,1.35889982]
[1759715495705,1.35889982,231.18,231.12,1.35889982]
[1759715495906,0.67,231.16,231.12,1.35889982]
[1759715496218,0.67,231.16,231.11,5.68583761]
[1759715496415,0.67,231.16,231.11,1.35889982]
[1759715496601,0.67,231.15,231.1,1.35889982]
[1759715497300,31.06,231.15,231.1,1.35889982]
[1759715497505,31.73,231.15,231.1,1.35889982]
[1759715497905,31.06,231.15,231.11,0.69]
[1759715498107,31.06,231.15,231.13,1.35889982]
[1759715498421,31.06,231.15,231.12,1.35889982]
[1759715499013,0.67,231.21,231.14,1.35889982]
[1759715499320,31.06,231.22,231.16,1.35889982]
[1759715499522,31.06,231.22,231.17,1.35889982]
[1759715499703,31.73,231.22,231.17,2.04889982]
[1759715500103,31.73,231.22,231.17,0.69]
[1759715500311,31.73,231.22,231.17,2.04889982]
[1759715503610,0.67,231.21,231.16,1.35889982]
[1759715503811,0.67,231.2,231.16,1.35889982]
[1759715505725,31.73,231.22,231.16,6.37486538]
[1759715506116,31.73,231.22,231.17,1.35889982]
[1759715506333,31.06,231.22,231.17,1.35889982]
[1759715506536,0.67,231.21,231.17,1.35889982]
[1759715506742,0.67,231.2,231.16,1.35889982]
[1759715506924,0.67,231.19,231.12,4.32673442]
[1759715507238,1.35889982,231.2,231.09,153.5]
[1759715507239,1.35889982,231.15,231.09,0.69]
[1759715507540,31.04,231.14,231.1,1.35889982]
[1759715507742,2.02889982,231.16,231.1,1.35889982]
[1759715507743,31.04,231.15,231.1,1.35889982]
[1759715508031,31.04,231.15,231.11,1.35889982]
[1759715508238,31.04,231.15,231.11,2.06889982]
[1759715508422,31.04,231.15,231.12,1.35889982]
[1759715509716,31.04,231.15,231.11,2.06889982]
[1759715510429,31.74,231.15,231.11,1.35889982]
[1759715511021,31.04,231.15,231.11,5.68583787]
[1759715511225,31.04,231.15,231.11,6.39583787]
[1759715512033,31.04,231.15,231.13,1.35889982]
[1759715512235,31.04,231.15,231.12,2.06889982]
[1759715512822,31.04,231.15,231.13,1.35889982]
[1759715514036,31.02,231.16,231.14,2.06889982]
[1759715514237,31.02,231.16,231.13,1.35889982]
[1759715515135,0.7,231.15,231.12,1.35889982]
[1759715515443,31.02,231.16,231.13,1.35889982]
[1759715516740,0.7,231.17,231.13,6.39543438]
[1759715516932,31.02,231.16,231.13,6.39543438]
[1759715517332,31.02,231.16,231.13,2.06889982]
[1759715517646,31.02,231.16,231.13,1.35889982]
[1759715519245,31.72,231.16,231.13,1.35889982]
[1759715519455,31.02,231.16,231.13,1.35889982]
[1759715520826,31.02,231.16,231.12,5.68554911]
[1759715521028,31.02,231.16,231.12,6.39554911]
[1759715522452,31.02,231.16,231.13,1.35889982]
[1759715523950,21.5,231.18,231.13,1.35889982]
[1759715524153,31.72,231.17,231.13,1.35889982]
[1759715524837,0.7,231.16,231.1,80.6]
[1759715525042,31.02,231.17,231.07,5.03768578]
[1759715525043,1.35889982,231.13,231.07,5.03768578]
[1759715525248,31.0,231.12,231.08,2.06889982]
[1759715525448,31.0,231.12,231.1,1.35889982]
[1759715525748,0.7,231.16,231.11,2.06889982]
[1759715525749,31.0,231.16,231.11,2.06889982]
[1759715526051,31.7,231.16,231.14,1.35889982]
[1759715528128,4.3255095,231.19,231.14,1.35889982]
[1759715528334,31.7,231.18,231.16,1.35889982]
[1759715528533,31.7,231.17,231.16,1.35889982]
[1759715528739,31.0,231.17,231.15,1.35889982]
[1759715529840,31.0,231.17,231.16,1.35889982]
[1759715530041,0.7,231.22,231.16,2.06889982]
[1759715530240,31.0,231.21,231.2,1.35889982]
[1759715530448,31.0,231.21,231.17,0.71]
[1759715530664,31.0,231.2,231.18,1.35889982]
[1759715530833,31.0,231.2,231.19,1.35889982]
[1759715531435,31.7,231.2,231.18,1.35889982]
[1759715531836,31.0,231.2,231.18,1.35889982]
[1759715532636,31.0,231.2,231.16,4.32596723]
[1759715532960,31.0,231.2,231.18,1.35889982]
[1759715533157,31.0,231.2,231.19,1.35889982]
[1759715535561,31.0,231.2,231.18,1.35889982]
[1759715535858,31.0,231.2,231.19,1.35889982]
[1759715536664,31.7,231.2,231.14,80.6]
[1759715536851,31.7,231.2,231.17,1.35889982]
[1759715537358,31.0,231.2,231.17,1.35889982]
[1759715537761,31.0,231.2,231.18,1.35889982]
[1759715538361,5.78354344,231.24,231.19,1.35889982]
[1759715538362,0.71,231.23,231.19,1.35889982]
[1759715538658,0.71,231.23,231.18,0.66]
[1759715538659,30.98,231.22,231.2,1.35889982]
[1759715538838,30.98,231.22,231.18,4.98562674]
[1759715539049,0.71,231.21,231.2,1.35889982]
[1759715539278,30.98,231.22,231.19,1.35889982]
[1759715539576,30.98,231.22,231.2,1.35889982]
[1759715540064,30.98,231.22,231.19,1.35889982]
[1759715540258,30.98,231.22,231.17,0.66]
[1759715540452,0.71,231.21,231.15,4.32617858]
[1759715540679,0.71,231.21,231.15,4.98617858]
[1759715540969,0.71,231.21,231.17,1.35889982]
[1759715541470,30.98,231.22,231.19,1.35889982]
[1759715542552,31.69,231.22,231.19,1.35889982]
[1759715542777,30.98,231.22,231.19,1.35889982]
[1759715543075,0.71,231.21,231.18,1.35889982]
[1759715545165,30.98,231.22,231.19,1.35889982]
[1759715545770,0.81,231.24,231.2,0.66]
[1759715545771,30.96,231.21,231.2,0.66]
[1759715545967,30.96,231.21,231.2,2.01889982]
[1759715546864,30.96,231.21,231.2,1.35889982]
[1759715547064,30.96,231.21,231.19,1.35889982]
[1759715548276,30.96,231.21,231.17,0.66]
[1759715548475,30.96,231.21,231.19,1.35889982]
[1759715549560,0.71,231.23,231.2,1.35889982]
[1759715549760,30.96,231.22,231.2,1.35889982]
[1759715550780,30.96,231.22,231.19,1.35889982]
[1759715550966,31.67,231.22,231.19,1.35889982]
[1759715551974,30.96,231.22,231.19,1.35889982]
[1759715552275,30.96,231.22,231.2,1.35889982]
[1759715553181,30.96,231.22,231.2,2.12245543]
[1759715553766,30.96,231.22,231.2,0.69]
[1759715554071,30.96,231.22,231.2,2.12245543]
[1759715554977,0.69,231.21,231.19,2.12245543]
[1759715555388,30.96,231.22,231.19,2.12245543]
[1759715555568,30.96,231.22,231.19,2.81245543]
[1759715556089,30.96,231.22,231.2,2.12245543]
[1759715556785,30.96,231.22,231.16,10.81486089]
[1759715556991,30.96,231.22,231.2,2.81245543]
[1759715557189,30.96,231.22,231.21,0.69]
[1759715557492,30.94,231.23,231.21,2.81245543]
[1759715557707,31.04,231.24,231.22,2.12245543]
[1759715557874,31.04,231.24,231.23,2.12245543]
[1759715559002,31.04,231.24,231.2,0.69]
[1759715559169,31.04,231.24,231.22,2.12245543]
[1759715559996,31.04,231.24,231.21,0.69]
[1759715559997,31.04,231.24,231.23,2.12245543]
[1759715560205,0.1,231.24,231.23,2.12245543]
[1759715560495,0.1,231.24,231.23,2.81245543]
[1759715561069,0.1,231.24,231.23,7.13715378]
[1759715563110,0.1,231.24,231.23,15.89117356]
[1759715563322,0.1,231.24,231.23,18.01362899]
[1759715565295,0.1,231.27,231.23,18.01362899]
[1759715565296,0.1,231.27,231.26,31.67647521]
[1759715565500,0.1,231.27,231.26,33.79893064]
[1759715565711,0.1,231.27,231.26,34.48893064]
[1759715566220,0.1,231.27,231.26,38.81306797]
[1759715567618,0.1,231.27,231.26,18.01306797]
[1759715567820,0.1,231.27,231.26,38.81306797]
[1759715568700,0.1,231.27,231.26,18.01306797]
[1759715568999,0.1,231.27,231.22,20.8]
[1759715569000,0.78,231.27,231.24,2.12245543]
[1759715569217,0.78,231.27,231.21,10.87647521]
[1759715569218,0.68,231.26,231.21,2.12245543]
[1759715569524,0.68,231.25,231.21,2.12245543]
[1759715569915,0.68,231.24,231.2,2.12245543]
[1759715570118,0.68,231.23,231.21,2.12245543]
[1759715570428,0.68,231.26,231.21,2.12245543]
[1759715570613,0.68,231.25,231.21,2.12245543]
[1759715571507,0.68,231.24,231.21,2.12245543]
[1759715573134,0.68,231.23,231.21,2.12245543]
[1759715573432,6.54641519,231.27,231.21,2.12245543]
[1759715573433,0.68,231.26,231.21,6.44748223]
[1759715573606,0.68,231.25,231.21,6.44748223]
[1759715573805,0.68,231.25,231.22,2.12245543]
[1759715574125,0.68,231.25,231.23,2.12245543]
[1759715574539,0.1,231.27,231.24,2.81245543]
[1759715574711,0.1,231.27,231.26,2.12245543]
[1759715576230,0.78,231.27,231.25,2.12245543]
[1759715576409,0.1,231.27,231.24,2.12245543]
[1759715577062,0.78,231.27,231.24,2.12245543]
[1759715578065,0.1,231.27,231.24,2.12245543]
[1759715578270,0.68,231.26,231.24,2.12245543]
[1759715578636,0.68,231.26,231.23,2.12245543]
[1759715578836,0.68,231.25,231.21,2.12245543]
[1759715579038,0.68,231.24,231.21,2.12245543]
[1759715579244,0.78,231.27,231.22,2.12245543]
[1759715579444,0.68,231.26,231.22,2.12245543]
[1759715580965,0.1,231.27,231.23,2.81245543]
[1759715581163,0.1,231.27,231.22,2.12245543]
[1759715581363,0.68,231.26,231.19,0.69]
[1759715581567,2.12245543,231.24,231.17,2.12245543]
[1759715581775,2.12245543,231.25,231.17,0.69]
[1759715582066,0.68,231.23,231.18,2.12245543]
[1759715582272,0.68,231.23,231.18,2.81245543]
[1759715582774,0.68,231.22,231.18,2.81245543]
[1759715583065,6.44688288,231.25,231.18,2.81245543]
[1759715583266,0.68,231.24,231.18,2.12245543]
[1759715583464,0.68,231.23,231.18,2.12245543]
[1759715583650,0.68,231.22,231.18,2.12245543]
[1759715584074,4.32442745,231.25,231.19,2.81245543]
[1759715584377,0.68,231.26,231.21,2.12245543]
[1759715584573,0.68,231.26,231.21,2.81245543]
[1759715584754,0.68,231.25,231.21,2.81245543]
[1759715585371,4.4240329,231.27,231.22,0.69]
[1759715585582,5.1040329,231.27,231.22,2.81245543]
[1759715585775,0.68,231.26,231.22,2.12245543]
[1759715585969,4.4240329,231.27,231.21,2.12245543]
[1759715586182,0.68,231.26,231.21,2.12245543]
[1759715586480,0.68,231.25,231.21,2.12245543]
[1759715587869,0.68,231.26,231.21,2.81245543]
[1759715588382,0.68,231.26,231.22,2.12245543]
[1759715589672,4.42398189,231.27,231.23,0.69]
[1759715589978,0.1,231.27,231.23,0.69]
[1759715590178,0.78,231.27,231.23,0.69]
[1759715590482,0.68,231.26,231.22,2.12245543]
[1759715590665,0.68,231.26,231.22,0.69]
[1759715591382,0.68,231.26,231.22,2.81245543]
[1759715591682,0.1,231.27,231.25,2.12245543]
[1759715591887,0.1,231.27,231.26,2.12245543]
[1759715592181,0.1,231.27,231.26,13.68893064]
[1759715592576,0.1,231.35,231.32,2.12245543]
[1759715592881,0.78,231.35,231.31,2.12245543]
[1759715593271,0.78,231.35,231.28,0.69]
[1759715593272,0.1,231.35,231.32,2.81245543]
[1759715593467,0.1,231.35,231.32,7.13547116]
[1759715595771,0.78,231.33,231.29,10.87647521]
[1759715595987,0.1,231.33,231.32,2.12245543]
[1759715596498,0.1,231.33,231.32,2.81245543]
[1759715597765,0.1,231.33,231.32,7.13547116]
[1759715598289,0.1,231.33,231.32,2.12245543]
[1759715598879,0.1,231.33,231.32,2.81245543]
[1759715599986,0.1,231.33,231.32,2.12245543]
[1759715600190,0.1,231.33,231.31,2.12245543]
[1759715600697,0.1,231.33,231.32,2.12245543]
[1759715602091,0.1,231.33,231.3,4.32335582]
[1759715602300,2.79245543,231.32,231.27,12.9805508]
[1759715602589,2.12245543,231.29,231.27,12.9805508]
[1759715602802,2.12245543,231.29,231.22,2.12245543]
[1759715602803,0.67,231.28,231.22,2.12245543]
[1759715603501,0.67,231.28,231.22,6.44733628]
[1759715603678,0.67,231.28,231.22,7.13733628]
[1759715604192,0.67,231.27,231.2,0.69]
[1759715604399,2.79245543,231.27,231.2,2.81245543]
[1759715604577,2.79245543,231.27,231.2,0.69]
[1759715604777,0.67,231.26,231.2,0.69]
[1759715605884,0.67,231.26,231.2,7.13770691]
[1759715607096,2.79245543,231.28,231.21,0.69]
[1759715609302,2.12245543,231.25,231.18,0.69]
[1759715609480,0.67,231.24,231.18,0.69]
[1759715609679,0.67,231.24,231.17,6.44825967]
[1759715609680,2.12245543,231.21,231.14,10.81434166]
[1759715609981,30.86,231.25,231.13,0.69]
[1759715609982,0.67,231.2,231.13,2.81245543]
[1759715610177,0.67,231.2,231.09,10.81755189]
[1759715610178,2.12245543,231.17,231.1,2.12245543]
[1759715610399,0.67,231.16,231.09,2.81245543]
[1759715610703,0.67,231.16,231.1,0.69]
[1759715612197,0.67,231.16,231.1,5.01706771]
[1759715612390,54.45245543,231.18,231.1,5.01706771]
[1759715612579,31.53,231.18,231.11,2.12245543]
[1759715612779,31.53,231.18,231.12,0.69]
[1759715613578,0.67,231.18,231.12,0.69]
[1759715613781,0.67,231.18,231.12,2.04923601]
[1759715614105,0.67,231.18,231.12,0.69]
[1759715614301,1.35923601,231.15,231.08,10.87647521]
[1759715614507,0.66,231.14,231.08,2.01923601]
[1759715614995,1.35923601,231.15,231.08,2.01923601]
[1759715615380,1.35923601,231.15,231.08,6.34667821]
[1759715615694,6.34544672,231.15,231.08,2.01923601]
[1759715616698,1.35923601,231.13,231.05,0.66]
[1759715616901,4.32621071,231.15,231.05,0.66]
[1759715616902,0.66,231.12,231.05,0.66]
[1759715617079,2.01923601,231.12,231.05,0.66]
[1759715617482,2.01923601,231.12,231.05,4.98804151]
[1759715618696,2.01923601,231.12,231.05,0.66]
[1759715618898,2.01923601,231.12,231.05,2.01923601]
[1759715619104,6.34604467,231.12,231.05,2.01923601]
[1759715619487,6.34604467,231.12,231.05,0.66]
[1759715620915,2.01923601,231.14,231.06,1.35923601]
[1759715621096,10.87647521,231.18,231.06,1.35923601]
[1759715621097,21.46,231.17,231.12,1.35923601]
[1759715621585,21.46,231.17,231.12,2.01923601]
[1759715621990,0.66,231.16,231.12,1.35923601]
[1759715622192,0.66,231.15,231.12,1.35923601]
[1759715622620,10.87647521,231.22,231.12,1.35923601]
[1759715622806,0.66,231.17,231.1,0.66]
[1759715623117,0.66,231.17,231.1,1.35923601]
[1759715624810,1.35923601,231.12,231.04,11.47923226]
[1759715625123,2.01923601,231.11,231.04,0.66]
[1759715625332,2.01923601,231.11,231.04,6.34747929]
[1759715625621,2.01923601,231.11,231.04,2.01923601]
[1759715625800,2.01923601,231.11,231.04,0.66]
[1759715626322,6.34620691,231.11,231.04,0.66]
[1759715628610,1.35923601,231.09,231.01,2.02923601]
[1759715628811,0.66,231.08,231.01,2.02923601]
[1759715629904,0.66,231.08,231.01,6.35795121]
[1759715630422,0.66,231.08,231.02,1.35923601]
[1759715631610,0.66,231.08,230.98,12.76501906]
[1759715631611,5.68683864,231.08,231.0,1.35923601]
[1759715631813,1.35923601,231.06,230.98,25.79929736]
[1759715632016,2.01923601,231.06,230.99,1.35923601]
[1759715632517,0.66,231.06,231.0,1.35923601]
[1759715632720,0.66,231.06,231.0,2.02923601]
[1759715632901,0.66,231.06,231.01,1.35923601]
[1759715633305,6.34674426,231.08,231.02,0.67]
[1759715633698,1.35923601,231.07,231.0,1.35923601]
[1759715633899,0.66,231.06,231.0,1.35923601]
[1759715634409,0.66,231.06,231.0,2.02923601]
[1759715635023,6.34674426,231.08,231.0,2.02923601]
[1759715635228,6.34674426,231.08,231.01,1.35923601]
[1759715635430,6.34674426,231.08,231.01,2.02923601]
[1759715635609,0.66,231.07,231.0,1.35923601]
[1759715635813,0.66,231.06,231.0,2.02923601]
[1759715636522,0.66,231.06,231.0,6.35820691]
[1759715636924,0.66,231.06,231.0,2.02923601]
[1759715637227,0.66,231.06,231.0,6.35819357]
[1759715637824,20.8,231.1,231.0,5.68819357]
[1759715638006,0.66,231.12,231.01,0.67]
[1759715638210,1.35923601,231.11,231.03,1.35923601]
[1759715638428,0.66,231.1,231.03,1.35923601]
[1759715638608,0.66,231.09,231.02,2.02923601]
[1759715639523,0.66,231.08,231.02,2.02923601]
[1759715640314,4.32731836,231.09,230.99,0.67]
[1759715640315,1.35923601,231.06,230.99,0.67]
[1759715640520,1.35923601,231.06,231.0,0.67]
[1759715640723,0.66,231.1,231.02,1.35923601]
[1759715640940,1.35923601,231.11,231.03,0.67]
[1759715640941,30.84,231.08,231.03,0.67]
[1759715641311,31.5,231.08,231.04,0.67]
[1759715641540,31.5,231.08,231.02,0.67]
[1759715641541,0.66,231.07,231.02,0.67]
[1759715641837,0.66,231.07,231.03,0.67]
[1759715642333,30.84,231.08,231.03,0.67]
[1759715642511,0.66,231.07,231.01,6.3580257]
[1759715643226,30.84,231.08,231.02,0.67]
[1759715643628,30.84,231.08,231.02,4.99862552]
[1759715644115,30.84,231.08,231.02,0.67]
[1759715646139,12.99,231.27,231.08,10.87647521]
[1759715646324,0.66,231.26,231.16,1.35923601]
[1759715646523,2.01923601,231.25,231.16,1.35923601]
[1759715646728,22.3,231.26,231.11,31.67647521]
[1759715646729,1.35923601,231.23,231.11,31.67647521]
[1759715647022,0.66,231.22,231.15,12.98898101]
[1759715647334,22.3,231.26,231.1,10.87647521]
[1759715647335,0.66,231.21,231.1,10.87647521]
[1759715647534,0.66,231.21,231.09,12.23571122]
[1759715647535,1.35923601,231.17,231.09,10.87647521]
[1759715647718,1.35923601,231.11,231.09,12.99207483]
[1759715647919,30.84,231.17,230.96,17.399483]
[1759715647920,30.84,231.17,231.03,1.35923601]
[1759715648219,0.66,231.16,231.09,1.35923601]
[1759715648419,0.66,231.16,231.11,1.35923601]
[1759715648950,0.66,231.16,231.13,1.35923601]
[1759715649731,12.99179351,231.27,231.13,1.35923601]
[1759715650028,0.66,231.2,231.15,1.35923601]
[1759715650722,30.28,231.22,231.13,12.99010586]
[1759715650923,1.35923601,231.2,231.08,10.87647521]
[1759715651144,0.66,231.19,231.12,1.35923601]
[1759715651344,0.66,231.19,231.12,5.68594501]
[1759715653250,30.28,231.22,231.12,5.68594501]
[1759715653251,0.66,231.22,231.16,1.35923601]
[1759715653455,30.82,231.21,231.16,1.35923601]
[1759715653644,31.48,231.21,231.16,1.35923601]
[1759715655168,0.66,231.2,231.16,1.35923601]
[1759715655864,0.66,231.2,231.14,5.68544829]
[1759715656660,30.82,231.21,231.14,5.68544829]
[1759715656852,31.48,231.21,231.14,5.68544829]
[1759715658366,31.48,231.21,231.16,1.35923601]
[1759715658675,0.67,231.2,231.16,5.68515432]
[1759715659373,30.82,231.21,231.16,5.81515432]
[1759715659578,30.82,231.22,231.16,5.81515432]
[1759715659757,20.8,231.26,231.2,1.35923601]
[1759715659758,0.67,231.26,231.2,1.35923601]
[1759715660072,0.1,231.33,231.2,1.35923601]
[1759715660073,23.48,231.28,231.24,1.35923601]
[1759715660257,23.48,231.28,231.26,1.35923601]
[1759715660573,30.92,231.33,231.25,1.35923601]
[1759715660869,0.67,231.28,231.24,1.35923601]
[1759715661469,0.67,231.27,231.24,1.35923601]
[1759715662066,0.67,231.26,231.24,1.35923601]
[1759715666482,0.67,231.28,231.24,5.68368361]
[1759715666776,0.67,231.27,231.24,5.68368361]
[1759715667566,0.67,231.32,231.24,5.68368361]
[1759715667770,30.8,231.31,231.26,1.35923601]
[1759715667966,31.47,231.31,231.27,4.32395036]
[1759715668169,30.8,231.31,231.28,1.35923601]
[1759715669977,31.47,231.31,231.27,1.35923601]
[1759715670484,0.67,231.3,231.27,1.35923601]
[1759715671383,0.67,231.3,231.27,5.68303726]
[1759715671879,30.8,231.31,231.27,1.35923601]
[1759715672082,0.67,231.3,231.25,20.8]
[1759715672267,0.67,231.29,231.25,20.8]
[1759715673281,0.67,231.29,231.26,1.35923601]
[1759715674181,0.1,231.33,231.28,1.35923601]
[1759715674377,0.1,231.33,231.3,1.35923601]
[1759715674681,0.1,231.33,231.29,1.35923601]
[1759715674682,0.79,231.33,231.29,1.35923601]
[1759715674863,0.69,231.32,231.29,1.35923601]
[1759715675059,0.69,231.31,231.29,2.12043871]
[1759715675588,0.69,231.3,231.28,2.12043871]
[1759715675887,4.42283263,231.33,231.27,2.12043871]
[1759715676186,4.42283263,231.33,231.25,2.12043871]
[1759715676187,0.69,231.29,231.25,2.12043871]
[1759715676486,0.69,231.29,231.26,2.12043871]
[1759715676695,0.69,231.28,231.26,2.12043871]
[1759715676865,30.78,231.3,231.26,2.12043871]
[1759715677067,0.69,231.27,231.24,2.12043871]
[1759715677384,30.78,231.3,231.24,2.12043871]
[1759715677583,0.69,231.27,231.23,25.12453616]
[1759715677899,0.69,231.27,231.25,2.12043871]
[1759715678563,0.69,231.29,231.25,2.12043871]
[1759715678786,0.69,231.28,231.25,2.12043871]
[1759715678983,30.78,231.3,231.25,2.12043871]
[1759715679285,0.69,231.29,231.25,2.12043871]
[1759715679589,0.69,231.28,231.25,2.12043871]
[1759715679766,0.69,231.27,231.25,2.12043871]
[1759715680887,0.69,231.26,231.19,10.87647521]
[1759715681091,31.47,231.25,231.17,4.32582082]
[1759715681386,0.69,231.24,231.14,10.87647521]
[1759715681587,0.69,231.23,231.18,2.12043871]
[1759715681793,0.69,231.22,231.18,2.12043871]
[1759715681998,0.69,231.21,231.18,2.12043871]
[1759715683101,0.69,231.2,231.17,2.12043871]
[1759715683296,0.69,231.19,231.16,2.12043871]
[1759715684094,0.69,231.18,231.16,2.12043871]
[1759715685104,0.69,231.18,231.16,6.44644349]
[1759715685395,0.69,231.2,231.17,2.12043871]
[1759715688882,0.67,231.2,231.17,2.12043871]
[1759715689286,0.67,231.22,231.18,2.12043871]
[1759715689515,20.8,231.27,231.21,2.12043871]
[1759715689516,0.67,231.24,231.21,2.12043871]
[1759715690382,0.67,231.26,231.23,2.12043871]
[1759715690587,0.67,231.26,231.15,26.01815809]
[1759715690588,0.67,231.26,231.24,2.12043871]
[1759715691310,4.32301573,231.32,231.25,2.12043871]
[1759715691311,30.78,231.28,231.25,2.12043871]
[1759715691515,31.45,231.31,231.27,2.12043871]
[1759715691687,30.78,231.31,231.28,2.12043871]
[1759715691885,30.78,231.31,231.24,4.32449249]
[1759715691886,0.67,231.3,231.27,2.12043871]
[1759715692089,0.67,231.29,231.27,2.12043871]
[1759715692786,30.78,231.31,231.26,2.12043871]
[1759715693100,0.67,231.3,231.26,2.12043871]
[1759715693411,35.10320388,231.31,231.26,2.12043871]
[1759715693412,0.67,231.29,231.26,2.12043871]
[1759715694597,0.67,231.29,231.27,2.12043871]
[1759715697097,0.67,231.28,231.22,20.8]